Cogmind - Beta 13 *** ADVENTURER MODE // 2024.06.27 @ 19:54:38 Player: KaiSkiFox Result: Self-destructed Performance ------------- Evolutions (2) 1000 Regions Visited (3) 600 Robots Destroyed (80) 400 Value Destroyed (2054) 2054 Prototype IDs (6) 120 Alien Tech Used (0) 0 Bonus (12) 12 TOTAL SCORE: 4186 Bonus ------- High Alert Combat Kills 12 Cogmind --------- Core Integrity 167/550 Matter 256/300 Energy 160/160 System Corruption 0% Temperature Cool (0) Movement Walking (680) Ox8 Location -8/Materials Parts ------- > --- POWER (1) -------- Light Nuclear Core > --- PROPULSION (4) --- Aluminum Leg > --- UTILITY (4) ------ Improved Heat Sink Huge Storage Unit Signal Interpreter Targeting Computer > --- WEAPON (2) ------- Light Assault Rifle > --- INVENTORY (25) --- Large Storage Unit Sensor Array Targeting Computer Targeting Computer Medium Armor Plating Hardened Medium Armor Plating System Shield Peak State ------------ > --- POWER ------------ Light Nuclear Core > --- PROPULSION ------- Light Treads Light Treads Light Treads Light Treads > --- UTILITY ---------- Large Storage Unit Signal Interpreter Salvage Targeting Computer Light Armor Plating > --- WEAPON ----------- Beam Rifle Heavy Assault Rifle > --- INVENTORY -------- Light Deuterium Engine Light Treads Light Treads Light Treads Cooling System Large Storage Unit Sensor Array Light Armor Plating Hardened Medium Armor Plating System Shield Beam Rifle Particle Gun Heavy Assault Rifle Heavy Assault Rifle Heavy Assault Rifle [Rating: 18] Favorites ----------- Power Ion Engine Engine Ion Engine Power Core Light Nuclear Core Propulsion Light Treads Treads Light Treads Leg Aluminum Leg Utility Large Storage Unit Device Improved Heat Sink Storage Large Storage Unit Processor Signal Interpreter Protection Core Shielding Weapon Beam Rifle Energy Gun Beam Rifle Ballistic Gun Heavy Assault Rifle Ballistic Cannon Light Cannon Build | -11 -10 -9 -8 ------- Run | Yrd Mat Mat Mat Slots Evolved 4 | . . 2 2 Power . | . . . . Propulsion 2 | . . 1 1 Utility 2 | . . 1 1 Weapon . | . . . . Parts Attached 60 | 6 4 23 27 Power 12 | 1 . 6 5 Engine 8 | 1 . 5 2 Core 4 | . . 1 3 Reactor . | . . . . Propulsion 15 | 2 . 6 7 Treads 13 | 2 . 6 5 Leg 2 | . . . 2 Wheel . | . . . . Hover . | . . . . Flight . | . . . . Utility 11 | 1 2 2 6 Device 1 | . . . 1 Storage 3 | 1 1 . 1 Processor 4 | . . 2 2 Hackware . | . . . . Protection 3 | . 1 . 2 Artifact . | . . . . Weapon 22 | 2 2 9 9 Energy Gun 11 | 2 1 4 4 Energy Cannon . | . . . . Ballistic Gun 9 | . . 4 5 Ballistic Cannon 2 | . 1 1 . Launcher . | . . . . Special Weapon . | . . . . Impact Weapon . | . . . . Slashing Weapon . | . . . . Piercing Weapon . | . . . . Special Melee Weapon . | . . . . Unidentified Prototypes 3 | . . 2 1 Parts Lost 22 | . . 2 20 Power 4 | . . . 4 Propulsion 8 | . . . 8 Utility 2 | . . . 2 Weapon 8 | . . 2 6 Highest Loss Streak 12 | . . 1 12 To Critical Strikes . | . . . . Average Slot Usage (%) 95 | . 99 99 87 Engine 9 | . 14 9 6 Core 1 | . . 1 1 Treads 27 | . 28 32 19 Leg 1 | . . . 5 Device 1 | . . . 4 Storage 11 | . 14 11 9 Processor 10 | . . 11 18 Protection 9 | . 13 11 4 Energy Gun 11 | . 14 11 8 Ballistic Gun 6 | . . 8 9 Ballistic Cannon 4 | . 13 2 . Naked Turns . | . . . . Heaviest Build 94 | 13 32 34 94 Greatest Support 80 | 40 40 60 80 Greatest Overweight (x) 31 | 4 . . 31 Average Overweight (x) . | . . . 1 Largest Inventory Capacity 25 | 8 15 15 25 Average Capacity 16 | 7 12 15 21 Most Carried 16 | 4 15 15 16 Average Carried 12 | 1 10 14 11 Final Capacity 25 | 8 15 15 25 Final Carried 15 | 4 15 15 7 Class Distribution -------------------- 62% | Scavenger-Mutant 37% | Mutant Dominant Class ---------------- Mutant | -10/Materials Scavenger-Mutant | -9/Materials Scavenger-Mutant | -8/Materials Resources | -11 -10 -9 -8 ----------- Run | Yrd Mat Mat Mat Matter Collected 1293 | 260 110 437 486 Remotely . | . . . . Salvage Created 2806 | . 274 1313 1219 Parts 183 | . 22 84 77 Haulers Intercepted 5 | . 1 2 2 Recyclers Shooed 2 | . . 1 1 Parts Field Recycled . | . . . . Retrieved Matter . | . . . . Parts Self-Destructed . | . . . . Prevented . | . . . . Kills | -11 -10 -9 -8 ------- Run | Yrd Mat Mat Mat Combat Hostiles Destroyed 66 | . 7 32 27 Guns 55 | . 3 25 27 Cannons 11 | . 4 7 . Classes Destroyed 9 | . 4 4 1 Builder 1 | . . . 1 Hauler 5 | . 1 2 2 Recycler 1 | . . 1 . Operator 1 | . . 1 . Watcher 6 | . 2 3 1 Swarmer 28 | . 3 15 10 Grunt 24 | . 4 7 13 Brawler 1 | . . 1 . Sentry 13 | . . 9 4 Best Kill Streak 10 | . 3 8 10 Combat Bots Only 10 | . 3 8 10 Max Kills in Single Turn 2 | . 1 1 2 Gunslinging 1 | . . . 1 Exploded . | . . . . Melee . | . . . . Uniques/NPCs Destroyed . | . . . . Combat | -11 -10 -9 -8 -------- Run | Yrd Mat Mat Mat Hostile Shots Fired 486 | . 27 136 323 Missed 114 | . 4 37 73 Damage Taken 3628 | . 180 905 2543 Core 489 | . 33 73 383 Absorbed by Shields . | . . . . Redirected to Shielding 20 | . 5 15 . Ignored by Resistances 1089 | . 61 274 754 Regen/Repaired (Parts) 140 | . . 140 . Core Remaining (%) 89 | 100 86 81 . Volleys Fired 213 | . 22 94 97 Largest 2 | . 2 2 2 Hottest 91 | . 90 91 88 Shots Fired 414 | . 44 188 182 Gun 367 | . 24 161 182 Cannon 47 | . 20 27 . Launcher . | . . . . Special . | . . . . Kinetic 228 | . 20 94 114 Thermal 183 | . 24 91 68 Explosive . | . . . . Electromagnetic 3 | . . 3 . Robot Hit Streak 23 | . 12 21 23 Robot Miss Streak 3 | . 2 3 2 Penetration Max . | . . . . Secondary Targets 7 | . . 3 4 Max Gunslinging Chain 1 | . . 1 1 Shots Hit Robots 316 | . 31 134 151 Core Hits 132 | . 17 56 59 Critical Kills 1 | . . 1 . Critical Parts Destroyed 1 | . . . 1 Critical Strikes 13 | . 1 7 5 Burn 8 | . . 4 4 Destroy 2 | . . 1 1 Blast 3 | . 1 2 . Melee Attacks . | . . . . Impact . | . . . . Slashing . | . . . . Piercing . | . . . . Sneak Attacks . | . . . . Combat Hostiles . | . . . . Follow-up Attacks . | . . . . Damage Inflicted 4514 | . 434 1767 2313 Guns 4023 | . 210 1517 2296 Cannons 474 | . 224 250 . Explosions . | . . . . Melee . | . . . . Ramming 17 | . . . 17 Kinetic 2375 | . 224 693 1458 Thermal 2103 | . 210 1055 838 Explosive . | . . . . Electromagnetic 19 | . . 19 . Impact . | . . . . Slashing . | . . . . Piercing . | . . . . Highest Corruption 1 | . . 1 . Average Corruption 1 | . . 1 . Corruption Purged . | . . . . Corruption Blocked . | . . . . Effects 4 | . . 4 . Message Errors 2 | . . 2 . Data Loss (minor) 2 | . . 2 . Overload Shots . | . . . . Overflow Damage . | . . . . Projectiles . | . . . . Explosions . | . . . . Melee . | . . . . Knockbacks 6 | . 3 3 . Impact . | . . . . Kinetic 6 | . 3 3 . Secondary . | . . . . Self-Inflicted Damage . | . . . . Shots . | . . . . Rammed 3 | . . . 3 Targets Rammed 3 | . . . 3 Kicked . | . . . . Crushed . | . . . . Highest Temperature 321 | . 156 195 321 Average Temperature 68 | . 40 49 114 Received Heat Transfer 1854 | . 84 348 1422 Effects 4 | . . . 4 Energy Bleed 2 | . . . 2 Interference 2 | . . . 2 Siege Activations . | . . . . Robots Corrupted . | . . . . Combat Hostiles . | . . . . Parts Fried . | . . . . Impact Corruptions . | . . . . Robots Melted . | . . . . Combat Hostiles . | . . . . Parts Melted 4 | . . 3 1 Heat Transferred 5852 | . 487 2997 2368 Parts Sabotaged . | . . . . Parts Stolen . | . . . . Parts Stripped . | . . . . Power Chain Reactions . | . . . . Alert | -11 -10 -9 -8 ------- Run | Yrd Mat Mat Mat Peak Influence 459 | . 167 459 339 Initial 54 | . . . 54 Average 124 | . 73 201 75 Maximum Alert Level 2 | . . 2 1 Low Security (%) 76 | 100 100 44 95 Level 1 21 | . . 49 4 Level 2 2 | . . 5 . Level 3 . | . . . . Level 4 . | . . . . Level 5 . | . . . . High Security . | . . . . Max Security . | . . . . Squads Dispatched 9 | . 2 3 4 Investigation 3 | . 2 1 . Extermination . | . . . . Reinforcement 3 | . . 2 1 Assault . | . . . . Garrison 3 | . . . 3 Intercept . | . . . . Searches Triggered . | . . . . Construction Impeded . | . . . . Haulers Reinforced . | . . . . Active Scanning Responses . | . . . . Cargo Convoy Interrupts . | . . . . Stealth | -11 -10 -9 -8 --------- Run | Yrd Mat Mat Mat Distress Signals 7 | . 2 2 3 Communications Jammed . | . . . . Distress Signals . | . . . . Times Spotted 108 | . 15 45 48 Peak Tracking Total 9 | . 4 5 9 Tactical Retreats 5 | . 1 2 2 Traps | -11 -10 -9 -8 ------- Run | Yrd Mat Mat Mat Traps Triggered 4 | . 2 2 . Indirectly . | . . . . Trap Hack Attempts . | . . . . Triggered . | . . . . Disarmed . | . . . . Reprogrammed . | . . . . Reused . | . . . . Traps Extracted . | . . . . Installed . | . . . . Triggered . | . . . . Machines | -11 -10 -9 -8 ---------- Run | Yrd Mat Mat Mat Machines Disabled 1 | . . 1 . Max in Single Turn 1 | . . 1 . Machines Repaired . | . . . . Machines Dismantled . | . . . . Machines Sabotaged . | . . . . Overloaded Fab Kills . | . . . . Hacking | -11 -10 -9 -8 --------- Run | Yrd Mat Mat Mat Machines Accessed 10 | . 2 8 . Terminals 7 | . 1 6 . Fabricators . | . . . . Repair Stations 2 | . 1 1 . Recycling Units . | . . . . Scanalyzers 1 | . . 1 . Garrison Access . | . . . . Total Hacks 31 | . 6 25 . Successful 21 | . 4 17 . Failed 10 | . 2 8 . Catastrophic 4 | . 1 3 . Database Lockouts . | . . . . Manual 10 | . 3 7 . Terminals 19 | . 4 15 . Fabricators . | . . . . Repair Stations 6 | . 2 4 . Recycling Units . | . . . . Scanalyzers 6 | . . 6 . Garrison Access . | . . . . Terminal Hacks 10 | . 3 7 . Prototype ID Bank 2 | . . 2 . Level Access Points 1 | . . 1 . Terminal Index 2 | . 1 1 . Unreport Threat 2 | . . 2 . Locate Traps 1 | . . 1 . Recall Investigation 1 | . 1 . . Zone Layout 1 | . 1 . . Fabricator Hacks . | . . . . Repair Station Hacks 5 | . 1 4 . Scan Component 3 | . 1 2 . Repair 2 | . . 2 . Recycling Unit Hacks . | . . . . Scanalyzer 6 | . . 6 . Insert Component 3 | . . 3 . Analyze 3 | . . 3 . Garrison Access Hacks . | . . . . Unauthorized Hacks . | . . . . Terminals . | . . . . Fabricators . | . . . . Repair Stations . | . . . . Recycling Units . | . . . . Scanalyzers . | . . . . Garrison Access . | . . . . Data Cores Recovered . | . . . . Used . | . . . . Hacking Detections 9 | . 2 7 . Full Trace Events 2 | . . 2 . Feedback Events . | . . . . Feedback Blocked . | . . . . Robot Schematics Acquired . | . . . . Robots Built . | . . . . Authchips . | . . . . Time . | . . . . Total Robot Build Rating . | . . . . Part Schematics Acquired 3 | . . 3 . Parts Built . | . . . . Authchips . | . . . . Time . | . . . . Total Part Build Rating . | . . . . Parts Repaired 2 | . . 2 . Time 52 | . . 52 . Parts Recycled . | . . . . Recycled Matter . | . . . . Retrieved Matter . | . . . . Retrieved Components . | . . . . Parts Scanalyzed 3 | . . 3 . Part Schematics Acquired 3 | . . 3 . Parts Damaged . | . . . . Bothacking | -11 -10 -9 -8 ------------ Run | Yrd Mat Mat Mat Used RIF Installer . | . . . . Robots Hacked . | . . . . Non-combat . | . . . . Combat . | . . . . Robot Hacks Applied . | . . . . Relay Couplers Released . | . . . . Fabnet Peak Effective % . | . . . . Robots Rewired . | . . . . Allies Hacked . | . . . . Hacks Repelled . | . . . . Allies | -11 -10 -9 -8 -------- Run | Yrd Mat Mat Mat Total Allies . | . . . . Largest Group . | . . . . Highest-Rated Group . | . . . . Highest-Rated Ally . | . . . . Total Orders . | . . . . Ally Attacks . | . . . . Total Damage . | . . . . Kills . | . . . . Allies Corrupted . | . . . . Allies Melted . | . . . . Intel | -11 -10 -9 -8 ------- Run | Yrd Mat Mat Mat Robot Analysis Total . | . . . . Derelict Logs Recovered . | . . . . Drone Launches . | . . . . Drone Recoveries . | . . . . Exploration | -11 -10 -9 -8 ------------- Run | Yrd Mat Mat Mat Turns Passed 3522 | 69 915 1432 1106 Spaces Moved 1455 | 37 501 628 289 Core 16 | 11 . . 5 Treads 1375 | 26 501 628 220 Legs 64 | . . . 64 Wheels . | . . . . Hover . | . . . . Flight . | . . . . Fastest Speed 50 | 50 160 160 160 Average Speed 178 | 155 160 160 254 Slowest Speed 1600 | 250 160 160 1600 Overloaded Moves . | . . . . Propulsion Burnouts . | . . . . Robots Hopped . | . . . . Cave-ins Triggered . | . . . . Exploration Rate (%) 40 | 5 61 71 25 Regions Visited 3 Branch Regions . Pre-discovered Areas . | . . . . Known Exits Taken 1 | . . 1 . Unknown Exits Taken 2 | 1 1 . . Scrap Searched . | . . . . Spaces Dug . | . . . . Terrain Destroyed . | . . . . Melee . | . . . . Projectile . | . . . . AOE . | . . . . Terrain Rammed . | . . . . Walls Destroyed . | . . . . Machines Disabled . | . . . . Actions | -11 -10 -9 -8 --------- Run | Yrd Mat Mat Mat Total 1978 | 46 572 883 477 Wait 165 | . 28 103 34 Move 1452 | 36 500 627 289 Hop . | . . . . Pick Up 43 | 4 13 13 13 Fast Attach 26 | 6 2 10 8 Attach 25 | . 1 8 16 Detach 4 | . 1 2 1 Swap 11 | . 1 6 4 Drop 36 | . 4 20 12 Fire 213 | . 22 94 97 Melee . | . . . . Ram . | . . . . Kick . | . . . . Crush 3 | . . . 3 Escape Stasis . | . . . . Rewire . | . . . . Trap . | . . . . Miscellaneous . | . . . . Route ------- -11/Scrapyard -10/Materials (discovered 3 exits: *Mat / [*Min x2]) -9/Materials (discovered 4 exits: *Mat x3 / *Min) -8/Materials History --------- Turn | Location | Event 15 | -11/Scrapyard | Discovered new exit (range 15) 70 | -11/Scrapyard | Entered Materials 112 | -10/Materials | Discovered new exit (range 16) 311 | -10/Materials | Build established: Mutant 488 | -10/Materials | Discovered new exit (range 8) 718 | -10/Materials | Discovered new exit (range 15) 985 | -10/Materials | Entered another Materials area 985 | -9/Materials | Evolved 2 slots: Propulsion x1, Utility x1 1367 | -9/Materials | Repaired Lgt. Treads 1396 | -9/Materials | Repaired Lgt. Treads 1426 | -9/Materials | Discovered new exit (range 16) 1567 | -9/Materials | Build established: Scavenger-Mutant 1718 | -9/Materials | Destroyed 8 combat bots 2080 | -9/Materials | Discovered new exit (range 15) 2157 | -9/Materials | Identified exit to Mines 2322 | -9/Materials | Identified exit to Materials 2417 | -9/Materials | Entered another Materials area 2417 | -8/Materials | Evolved 2 slots: Propulsion x1, Utility x1 2957 | -8/Materials | Garrison activated, responded to threat 3070 | -8/Materials | Lost 12 parts (2p7n1u2w) 3148 | -8/Materials | Core integrity fell below 50% 3523 | -8/Materials | Self-destructed Last Messages --------------- 03463_ S-10 Pest destroyed. 03472_ Acquired Lgt. Assault Rifle. 03478_ K-01 Serf collects debris. 03479_ S-10 Pest destroyed. 03480_ Acquired 16 matter. 03481_ K-01 Serf collects debris. 03485_ R-06 Scavenger collects Lgt. Ion Engine. 03488_ K-01 Serf collects debris. 03496_ S-10 Pest destroyed. 03498_ K-01 Serf collects debris. 03498_ S-10 Pest destroyed. 03500_ R-06 Scavenger collects Lgt. Assault Rifle. 03501_ K-01 Serf collects debris. 03503_ Aluminum Leg destroyed. 03504_ R-06 Scavenger collects Flight Unit. 03507_ S-10 Pest destroyed. 03507_ R-06 Scavenger collects Flight Unit. 03511_ W-25 Informer distress signal alerts nearby ally. 03511_ R-06 Scavenger collects Flight Unit. 03516_ Hvy. Assault Rifle destroyed. Map ----- +----------------------------------------------------+ | ???????#! ????????????????????? | | ???????##! ????????????????????? | | ????????#### #######??????????????????????? | | ???????????# "" %#????????????????????????????? | | ???????????# """ *#????????????????????????????? | | ???????????# "" #????????????????????????????? | | ????########[[% % # #?????????????????????? | | %% %%% + ![ #?????????????????????? | | ????###+#### ##+### * [[ #?????????????????????? | | ???????????# #%% #?????????????????????????????? | | ???????????# # #?????????????????????????????? | | ???????????# # #?????????????????????????????? | | ???????????# # #?????????????????????????????? | | ???????????# % # #?????????????????????????????? | | ???????????# # #?????????????????????????????? | | ???????????#% # #?????????????????????????????? | | ???????????# #####??########???????????????????? | | ???????????# #??????#!!==!!#???????????????????? | | ???????????# #??????#!!==!!#???????????????????? | | ???????????# #??????# #???????????????????? | | ############ ######## ###########?????????? | | ????????? | | % % s=[ ^ ????????? | | % %=%= ????????? | | ####+#############+######/####### ????????? | | ??????????# # %=@== #??????????????????? | | ??????????# # ===[ #??????????????????? | | ??????????# # #??????????????????? | | ??????????# # w #??????????????????? | | ??????????# # #??????????????????? | | ??????????# # #??????????????????? | | ??????????# # ! #??????????????????? | | ??????????# # #??????????????????? | | ??????????###########+#####+###??????????????????? | | ????????????????????# ????? #????????????????????? | | ????????????????????# ????? #????????????????????? | | ????????????????????# ????? #????????????????????? | | ????????????????????#?????? #????????????????????? | | ????????????????????????????#????????????????????? | | ?????????????????????????????????????????????????? | | ?????????????????????????????????????????????????? | | ?????????????????????????????????????????????????? | | ?????????????????????????????????????????????????? | | ?????????????????????????????????????????????????? | | ?????????????????????????????????????????????????? | | ?????????????????????????????????????????????????? | | ?????????????????????????????????????????????????? | | ?????????????????????????????????????????????????? | | ?????????????????????????????????????????????????? | | ?????????????????????????????????????????????????? | +----------------------------------------------------+ Best States ------------- Heat Dissipation 45 Energy Generation 14 Energy Capacity 265 Matter Stores 300 Matter Capacity 300 Sight Range 16 Terrain Scan Density 10 Armor Coverage 150 Resistance: KI 20 Resistance: TH 20 Resistance: EX 20 Resistance: EM 20 Resistance: I 20 Resistance: S 20 Resistance: P 20 Core Shielding 20 Evasion (%) 40 Targeting Accuracy 5 Recoil Reduction 4 Salvage Targeting 1 Offensive Hacking 10 Item Schematics ----------------- Hacking Suite | -9/Materials | Scanalyzed Lgt. Treads | -9/Materials | Scanalyzed Sensor Array | -9/Materials | Scanalyzed Robot Schematics ------------------ None Fabricated ------------ Nothing Alien Tech Used ----------------- None Achievements -------------- None Challenges ------------ None Game ------ Seed AntigravDisruptionMace Manual? 0 Play Time 00:29:05 Cumulative 16.2 hours Start 2024.06.27 @ 19:25:52 End 2024.06.27 @ 19:54:38 Sessions 1 Manual Loads 0 Difficulty Adventurer Special Mode None Game No. 19 Rogue 7 Adventurer 12 Explorer 0 Win Type - Total 0 Types 0/0/0/0/0/0/0/0/0 Lore% 21 Gallery% 28 Achievement% 23 Wizard Run 0 Options --------- Layout 0 ASCII 0 Keyboard 0 Movement Mouse Keybinds 0 Fullscreen 1 Font 24/Smallcaps Map View 76x50 Zoom Use 0% Tactical HUD 1 Map Filters NONE Filters NONE Steam 1 RUN: d208339a-d0bd-4cfc-af06-e594a4fcd606